bitfinex/quotes_SOLUSD_20251212
["timestamp","ask_amount","ask_price","bid_price","bid_amount"]
[1765562237865,1e-08,132.3,132.29,35.62422958]
[1765562238048,1e-08,132.3,132.29,37.04014461]
[1765562239898,1e-08,132.3,132.29,43.84337993]
[1765562240956,1e-08,132.33,132.32,0.28432314]
[1765562241174,1e-08,132.33,132.32,26.81428466]
[1765562242191,0.67000001,132.33,132.32,21.61141434]
[1765562242487,0.67000001,132.33,132.32,21.3270912]
[1765562242672,0.67000001,132.33,132.32,26.52996152]
[1765562242878,0.67000001,132.33,132.32,34.08739803]
[1765562243174,0.67000001,132.33,132.3,18.89505873]
[1765562243376,0.67000001,132.33,132.32,7.55743651]
[1765562244999,0.67000001,132.33,132.31,7.5580077]
[1765562245973,0.67000001,132.33,132.3,15.83845698]
[1765562246167,5.67870115,132.33,132.3,15.83845698]
[1765562246567,0.67,132.32,132.3,15.83845698]
[1765562247887,5.00773585,132.31,132.26,32.38479739]
[1765562248088,5.00773585,132.31,132.26,45.43188859]
[1765562248273,0.67,132.3,132.27,5.20287032]
[1765562248675,0.67,132.3,132.26,40.22901827]
[1765562248976,0.67,132.3,132.27,5.20287032]
[1765562249183,0.67,132.3,132.28,7.5597218]
[1765562250486,0.67,132.3,132.27,7.56029333]
[1765562251497,5.68310617,132.3,132.27,7.56029333]
[1765562251689,5.68310617,132.3,132.27,26.46102667]
[1765562251898,0.67,132.29,132.27,26.46102667]
[1765562253991,0.67,132.29,132.25,13.0470912]
[1765562254195,13.2412934,132.29,132.25,7.56110303]
[1765562254401,13.2412934,132.29,132.26,7.56085573]
[1765562254700,0.67,132.28,132.26,7.56085573]
[1765562254915,5.68210567,132.29,132.26,7.56085573]
[1765562255088,0.67,132.28,132.26,26.46301813]
[1765562256004,5.0101554,132.3,132.26,31.66588845]
[1765562256005,5.6801554,132.3,132.26,31.66588845]
[1765562256177,0.67,132.29,132.26,31.66588845]
[1765562256379,0.67,132.29,132.26,26.46301813]
[1765562257008,0.67,132.29,132.26,7.56085573]
[1765562258113,5.87287032,132.29,132.25,34.74502835]
[1765562258611,0.67,132.28,132.25,15.84143667]
[1765562261107,0.67,132.28,132.25,7.56143667]
[1765562261409,5.20287032,132.26,132.21,38.12252213]
[1765562261708,10.20046462,132.27,132.21,24.11110779]
[1765562261914,0.67,132.26,132.21,37.15819899]
[1765562262112,0.67,132.26,132.22,7.56315232]
[1765562262816,5.66957238,132.26,132.22,7.56315232]
[1765562263122,18.43331352,132.26,132.21,20.61064937]
[1765562263304,18.43331352,132.26,132.2,8.28]
[1765562263305,5.20287032,132.24,132.2,7.56407349]
[1765562263503,4.99957238,132.24,132.2,7.56407349]
[1765562263718,0.67,132.23,132.2,7.56407349]
[1765562264305,0.67,132.23,132.19,15.84476526]
[1765562268304,0.67,132.23,132.19,7.56476526]
[1765562268609,8.23265954,132.23,132.19,7.56476526]
[1765562269018,0.67,132.22,132.19,7.56476526]
[1765562271921,11.56727551,132.22,132.18,7.56521792]
[1765562272331,0.71,132.21,132.18,7.56521792]
[1765562273000,4.04376536,132.21,132.18,7.56521792]
[1765562273430,0.71,132.2,132.18,7.56521792]
[1765562274231,3.33376536,132.19,132.15,0.2]
[1765562274412,3.33376536,132.18,132.15,0.2]
[1765562274813,0.71,132.17,132.15,0.2]
[1765562279056,0.71,132.2,132.16,0.67]
[1765562279355,0.71,132.19,132.15,7.76697985]
[1765562279535,0.71,132.19,132.15,8.43697985]
[1765562279536,8.27503473,132.19,132.15,8.43697985]
[1765562279744,8.27503473,132.19,132.15,7.76697985]
[1765562279941,0.71,132.18,132.15,7.76697985]
[1765562280145,4.04376536,132.18,132.15,0.2]
[1765562280543,0.71,132.17,132.15,0.2]
[1765562281246,4.04376536,132.17,132.15,0.2]
[1765562281544,10.90035131,132.16,132.15,0.2]
[1765562281851,11.61035131,132.16,132.15,0.2]
[1765562282259,20.42029623,132.16,132.15,0.2]
[1765562284249,25.36695796,132.16,132.15,0.2]
[1765562284658,20.42029623,132.16,132.15,0.2]
[1765562286248,4.04376536,132.16,132.15,0.2]
[1765562286558,3.03202577,132.18,132.15,0.87]
[1765562286750,3.03202577,132.18,132.15,8.43705131]
[1765562286948,0.71,132.2,132.16,0.67]
[1765562287349,32.95422718,132.22,132.16,4.00376536]
[1765562287552,4.04376536,132.21,132.16,0.67]
[1765562288160,0.71,132.2,132.16,0.67]
[1765562288753,8.2744152,132.2,132.15,0.2]
[1765562288937,11.63376536,132.19,132.15,0.2]
[1765562289140,12.34376536,132.19,132.15,0.2]
[1765562289338,0.71,132.18,132.15,0.2]
[1765562289755,0.71,132.18,132.15,7.76704356]
[1765562290165,9.01,132.19,132.16,7.56656103]
[1765562290364,8.3,132.19,132.16,8.23656103]
[1765562290957,0.71,132.2,132.16,11.57032639]
[1765562291265,0.71,132.2,132.16,8.23656103]
[1765562291475,0.71,132.2,132.16,7.56656103]
[1765562291650,8.3,132.21,132.17,0.67]
[1765562291957,0.71,132.24,132.2,3.33376536]
[1765562292144,0.71,132.24,132.17,0.81216157]
[1765562292353,0.71,132.24,132.19,3.33376536]
[1765562292747,0.71,132.24,132.2,8.23396714]
[1765562292948,8.27202731,132.24,132.2,8.23396714]
[1765562293365,15.86147927,132.25,132.21,0.67]
[1765562293662,8.3,132.25,132.21,4.00376536]
[1765562293867,9.01,132.25,132.21,0.67]
[1765562294649,16.57149387,132.25,132.21,0.67]
[1765562294852,24.55791419,132.27,132.22,7.56315232]
[1765562295059,11.63376536,132.28,132.22,10.89691768]
[1765562295270,8.30079124,132.27,132.22,8.23315232]
[1765562295467,9.01079124,132.27,132.22,8.23315232]
[1765562295675,9.01079124,132.27,132.23,0.67]
[1765562295971,5.67702588,132.27,132.23,8.232207]
[1765562296160,15.86008263,132.28,132.24,0.67]
[1765562296341,19.90384799,132.28,132.24,0.67]
[1765562296665,0.71,132.27,132.2,0.14216157]
[1765562296869,0.71,132.27,132.2,0.67]
[1765562296870,3.33376536,132.25,132.2,0.67]
[1765562297169,8.30161648,132.26,132.21,3.33376536]
[1765562297365,4.96785112,132.26,132.22,10.89655759]
[1765562297548,9.01161648,132.27,132.22,10.89655759]
[1765562297871,0.68,132.26,132.22,11.58655759]
[1765562298075,8.24107081,132.26,132.22,11.58655759]
[1765562298771,8.24107081,132.26,132.22,8.25279223]
[1765562298967,4.01376536,132.25,132.2,8.25394459]
[1765562299159,4.01376536,132.25,132.2,11.58770995]
[1765562299338,16.58335372,132.25,132.21,0.69]
[1765562299543,4.01376536,132.24,132.18,40.93004641]
[1765562299762,4.01376536,132.24,132.18,35.98381177]
[1765562299940,0.68,132.23,132.18,35.98381177]
[1765562300143,8.24271405,132.23,132.19,7.56475187]
[1765562300365,16.54878622,132.23,132.19,7.56475187]
[1765562300673,8.24271405,132.23,132.19,7.56475187]
[1765562300872,8.24271405,132.23,132.19,8.28475187]
[1765562301180,0.68,132.23,132.2,0.72]
[1765562302459,13.21867211,132.23,132.19,10.89858711]
[1765562302670,8.24263695,132.23,132.19,11.61858711]
[1765562302867,0.68,132.23,132.19,11.61858711]
[1765562303065,5.65603414,132.23,132.2,0.72]
[1765562303670,4.97603414,132.23,132.2,8.28406464]
[1765562303874,13.22824052,132.24,132.2,8.28406464]
[1765562304070,0.69,132.23,132.2,8.28406464]
[1765562306256,5.67584275,132.23,132.2,8.28406464]
[1765562306652,13.23842694,132.23,132.2,7.56406464]
[1765562306852,13.23842694,132.23,132.2,8.28406464]
[1765562307068,8.25258419,132.23,132.2,8.28406464]
[1765562307273,7.56258419,132.23,132.2,8.28406464]
[1765562307772,8.25258419,132.23,132.2,8.28406464]
[1765562307976,8.25258419,132.23,132.18,8.28503328]
[1765562308158,13.23972785,132.23,132.19,0.72]
[1765562308360,13.23972785,132.23,132.19,8.28451674]
[1765562308685,116.60383524,132.22,132.17,9.0]
[1765562309062,0.69,132.21,132.17,9.0]
[1765562309373,0.69,132.21,132.17,16.56594131]
[1765562309572,0.69,132.21,132.17,9.0]
[1765562309774,3.33383524,132.2,132.15,8.48703602]
[1765562310080,15.84486874,132.19,132.15,8.48703602]
[1765562310284,16.53486874,132.19,132.15,8.48703602]
[1765562311215,15.84486874,132.19,132.15,8.48703602]
[1765562311361,16.53486874,132.19,132.15,8.48703602]
[1765562311678,15.84486874,132.19,132.15,0.92]
[1765562311883,16.53486874,132.19,132.15,0.92]
[1765562312672,16.53486874,132.19,132.15,8.48697092]
[1765562313682,8.97,132.21,132.16,11.62011708]
[1765562314073,0.69,132.2,132.17,0.72]
[1765562314264,0.69,132.2,132.16,8.28628184]
[1765562314669,7.56432988,132.2,132.17,0.72]
[1765562315290,12.55346997,132.2,132.17,0.72]
[1765562315802,12.55346997,132.2,132.16,7.56628184]
[1765562316093,13.24346997,132.2,132.16,8.28628184]
[1765562316266,8.25432988,132.2,132.16,8.28628184]
[1765562316467,4.98878524,132.2,132.17,8.2856884]
[1765562317080,8.97,132.21,132.17,8.2856884]
[1765562317298,4.98815234,132.2,132.17,8.2856884]
[1765562317498,3.33383524,132.19,132.15,0.2]
[1765562317716,9.01198758,132.19,132.15,0.92]
[1765562318194,4.02383524,132.19,132.15,0.92]
[1765562318372,9.01194047,132.19,132.15,8.48698805]
[1765562318884,7.56444997,132.2,132.16,8.28651476]
[1765562319084,12.55486,132.2,132.16,8.28651476]
[1765562319285,4.99041003,132.2,132.17,0.72]
[1765562319485,16.53391757,132.21,132.17,0.72]
[1765562320319,0.69,132.2,132.16,8.28651476]
[1765562320519,8.25440133,132.2,132.16,8.28651476]
[1765562320680,11.58823657,132.2,132.16,8.28651476]
[1765562320873,8.25440133,132.2,132.16,8.28651476]
[1765562321069,4.02383524,132.2,132.16,8.28651476]
[1765562321273,0.69,132.2,132.17,0.72]
[1765562321572,19.86776716,132.21,132.17,0.72]
[1765562321989,8.28,132.2,132.17,0.72]
[1765562322206,8.28,132.2,132.17,8.28595449]
[1765562323388,19.86776716,132.21,132.17,8.28595449]
[1765562324001,8.28,132.21,132.17,7.56595449]
[1765562324201,7.56261461,132.23,132.19,10.898396]
[1765562324498,7.56261461,132.23,132.18,0.72]
[1765562324499,8.25261461,132.23,132.18,0.72]
[1765562324678,4.02383524,132.22,132.17,13.0470912]
[1765562325003,8.28,132.21,132.17,13.0470912]
[1765562325187,8.97,132.21,132.17,13.7670912]
[1765562325383,8.28,132.21,132.18,0.72]
[1765562326099,3.33383524,132.22,132.18,0.72]
[1765562326100,11.58607462,132.24,132.18,4.05383524]
[1765562326306,8.28,132.23,132.18,4.05383524]
[1765562326484,8.28,132.23,132.19,0.72]
[1765562326689,8.97,132.23,132.19,0.72]
[1765562327398,8.28,132.23,132.19,11.61865413]
[1765562327699,5.00016774,132.24,132.19,27.19699076]
[1765562327999,8.95100942,132.25,132.2,4.05383524]
[1765562328190,16.5125324,132.25,132.2,4.05383524]
[1765562328384,14.8461999,132.25,132.21,0.72]
[1765562328706,9.02622466,132.24,132.19,8.28481889]
[1765562329198,9.02622466,132.24,132.2,0.72]
[1765562329378,5.00238942,132.24,132.2,11.61786925]
[1765562329577,3.95084168,132.25,132.21,0.72]
[1765562329578,5.00488042,132.25,132.21,0.72]
[1765562329798,5.69488042,132.25,132.21,0.72]
[1765562330176,5.00488042,132.24,132.21,0.72]
[1765562330406,5.00488042,132.24,132.21,8.28331184]
[1765562330585,5.00488042,132.24,132.21,0.72]
[1765562330901,5.00488042,132.24,132.19,18.9112687]
[1765562330902,18.47491568,132.24,132.2,7.56411646]
[1765562331208,13.47003526,132.24,132.2,8.22411646]
[1765562332104,13.47003526,132.24,132.21,7.56367873]
[1765562332601,144.52998486,132.26,132.21,7.56367873]
[1765562332602,8.26158443,132.25,132.21,8.22367873]
[1765562332904,5.00878196,132.24,132.21,8.22367873]
[1765562333077,5.90787213,132.24,132.2,8.22412935]
[1765562334392,13.46992365,132.24,132.2,8.22412935]
[1765562334797,5.01143832,132.23,132.2,8.22412935]
[1765562334995,5.90787213,132.23,132.19,7.5646167]
[1765562335301,14.18787213,132.23,132.19,8.2246167]
[1765562335498,5.01174587,132.22,132.19,8.2246167]
[1765562336102,5.01174587,132.22,132.17,24.12222882]
[1765562336103,5.01174587,132.22,132.2,8.22427785]
[1765562337614,13.2925879,132.23,132.2,8.22427785]
[1765562340109,13.9925879,132.23,132.2,8.22427785]
[1765562340312,115.22291088,132.22,132.18,0.66]
[1765562340501,110.20935294,132.22,132.18,8.22507416]
[1765562341245,5.71443217,132.21,132.18,8.22507416]
[1765562341518,0.7,132.21,132.18,8.22507416]
[1765562341695,5.20935294,132.21,132.18,7.56507416]
[1765562341896,0.7,132.2,132.17,7.56601346]
[1765562342100,0.7,132.2,132.17,8.22601346]
[1765562342510,5.90935294,132.2,132.17,8.22601346]
[1765562343116,0.7,132.2,132.17,8.22601346]
[1765562343900,5.71893242,132.2,132.17,8.22601346]
[1765562344418,12.77339579,132.21,132.17,8.22601346]
[1765562344601,5.71761617,132.2,132.17,8.22601346]
[1765562344800,13.47339579,132.21,132.17,8.22601346]
[1765562344991,5.01762151,132.2,132.17,8.22601346]
[1765562345198,0.7,132.21,132.18,0.66]
[1765562345412,5.01807753,132.2,132.18,0.66]
[1765562345611,104.3,132.22,132.18,0.66]
[1765562345892,5.01708873,132.21,132.18,0.66]
[1765562346207,104.3,132.22,132.18,0.66]
[1765562346406,5.0172408,132.21,132.18,0.66]
[1765562346605,105.0,132.22,132.18,0.66]
[1765562346805,5.01723936,132.21,132.19,7.56486874]
[1765562347005,105.0,132.22,132.19,7.56486874]
[1765562347222,5.01724038,132.21,132.19,7.56486874]
[1765562347414,105.0,132.22,132.19,8.22486874]
[1765562347619,5.01594283,132.21,132.19,8.22486874]
[1765562347917,105.0,132.22,132.19,8.22486874]
[1765562348215,5.01578232,132.21,132.19,8.22486874]
[1765562348520,104.3,132.22,132.2,0.66]
[1765562348900,126.39592023,132.26,132.2,5.86935294]
[1765562349098,5.01572178,132.25,132.21,5.20935294]
[1765562349304,5.01572178,132.24,132.22,5.20935294]
[1765562349622,13.46931638,132.28,132.23,5.20935294]
[1765562349623,5.01434106,132.25,132.23,5.20935294]
[1765562349820,5.01434106,132.27,132.24,0.66]
[1765562350019,5.01434106,132.26,132.24,0.66]
[1765562350222,5.01430171,132.27,132.24,0.66]
[1765562350422,8.98,132.28,132.25,7.56143667]
[1765562350604,5.01223906,132.27,132.25,7.56143667]
[1765562350805,16.539753,132.28,132.25,7.56143667]
[1765562351110,5.01223719,132.27,132.24,8.22176776]
[1765562351317,21.04910594,132.28,132.24,8.22176776]
[1765562351510,5.7097638,132.27,132.24,8.22176776]
[1765562351698,0.7,132.27,132.23,7.5624408]
[1765562351896,0.7,132.27,132.23,8.2224408]
[1765562352306,5.70774074,132.27,132.23,8.2224408]
[1765562352711,8.26029517,132.27,132.23,8.2224408]
[1765562353525,5.00694337,132.26,132.23,8.2224408]
[1765562354425,0.7,132.27,132.23,8.2224408]
[1765562354605,5.70506252,132.27,132.23,8.2224408]
[1765562355317,13.26537092,132.27,132.23,8.2224408]
[1765562356818,0.7,132.26,132.23,8.2224408]
[1765562357002,12.56537092,132.27,132.23,8.2224408]
[1765562357202,13.26537092,132.27,132.23,8.2224408]
[1765562358026,13.24537092,132.27,132.23,8.2224408]
[1765562358731,13.24537092,132.27,132.23,7.5624408]
[1765562358928,5.68506252,132.27,132.24,8.27190888]
[1765562359430,109.98506252,132.27,132.24,8.27190888]
[1765562359614,104.98,132.27,132.24,8.27190888]
[1765562361534,104.3,132.27,132.25,0.71]
[1765562362511,104.3,132.3,132.26,5.20935294]
[1765562362744,5.69036515,132.29,132.24,26.46693005]
[1765562362912,5.00036515,132.28,132.25,0.71]
[1765562363118,18.45944179,132.28,132.24,8.27190888]
[1765562363422,16.5297237,132.28,132.24,8.27190888]
[1765562363752,5.0004015,132.27,132.24,8.27190888]
[1765562364433,5.0004015,132.27,132.24,13.48126182]
[1765562364626,8.97,132.28,132.24,13.48126182]
[1765562364831,4.99951387,132.27,132.24,13.48126182]
[1765562365025,8.97,132.28,132.24,13.48126182]
[1765562365224,5.00049054,132.27,132.25,5.20935294]
[1765562365407,8.97,132.28,132.25,5.20935294]
[1765562365733,5.00024594,132.27,132.25,5.20935294]
[1765562365926,8.97,132.28,132.25,5.20935294]
[1765562366127,5.00042954,132.27,132.25,5.20935294]
[1765562366325,16.5297413,132.28,132.24,8.27190888]
[1765562366519,5.00065196,132.27,132.24,13.48126182]
[1765562366714,5.00065196,132.26,132.24,13.48126182]
[1765562366922,16.5297413,132.28,132.24,13.48126182]
[1765562367128,5.00113624,132.27,132.24,13.48126182]
[1765562367332,5.00113624,132.26,132.24,13.48126182]
[1765562367630,16.5297413,132.28,132.24,13.48126182]
[1765562367811,5.00423587,132.27,132.24,13.48126182]
[1765562368009,5.00423587,132.26,132.24,13.48126182]
[1765562368209,8.97,132.28,132.25,12.77078961]
[1765562368425,5.00527648,132.27,132.25,7.56143667]
[1765562368625,5.00527648,132.26,132.25,7.56143667]
[1765562368826,5.00527648,132.26,132.25,12.77078961]
[1765562369426,5.69527648,132.26,132.22,5.91935294]
[1765562369622,5.69527648,132.26,132.24,7.56200846]
[1765562369623,5.00527648,132.25,132.24,7.56200846]
[1765562370827,19.18462942,132.25,132.19,8.27443536]
[1765562371027,10.90462942,132.24,132.2,7.56407241]
[1765562371269,5.00527648,132.23,132.2,7.56407241]
[1765562371528,5.00527648,132.22,132.2,8.27407241]
[1765562371733,0.69,132.24,132.2,8.27407241]
[1765562372037,5.0074353,132.23,132.2,8.27407241]
[1765562372238,5.0074353,132.22,132.2,8.27407241]
[1765562372539,8.25206537,132.24,132.2,8.27407241]
[1765562372741,5.69753658,132.23,132.19,8.27469421]
[1765562372921,5.00753658,132.22,132.19,12.77404715]
[1765562373125,5.00753658,132.21,132.19,13.48404715]
[1765562373325,0.69,132.23,132.19,13.48404715]
[1765562373634,5.00714933,132.22,132.19,8.27469421]
[1765562373818,5.00714933,132.21,132.19,8.27469421]
[1765562374020,13.46196414,132.23,132.19,8.27469421]
[1765562374220,5.00714933,132.22,132.19,8.27469421]
[1765562374521,5.00714933,132.21,132.19,8.27469421]
[1765562374837,7.56211099,132.24,132.2,0.71]
[1765562375039,5.69696426,132.23,132.2,0.71]
[1765562375240,5.00696426,132.22,132.2,0.71]
[1765562375441,0.69,132.23,132.2,0.71]
[1765562375640,5.00672832,132.22,132.2,0.71]
[1765562375937,5.00672832,132.21,132.18,8.27523879]
[1765562376128,5.00672832,132.2,132.19,0.71]
[1765562376723,5.00672832,132.2,132.18,8.27523879]
[1765562376923,13.46284562,132.22,132.18,8.27523879]
[1765562377224,5.0054369,132.21,132.18,8.27523879]
[1765562377422,13.46284562,132.22,132.18,8.27523879]
[1765562377630,5.00502805,132.21,132.18,8.27523879]
[1765562377830,13.46284562,132.22,132.18,8.27523879]
[1765562378143,5.00502878,132.21,132.18,8.27523879]
[1765562378341,13.46284562,132.22,132.18,8.27523879]
[1765562378641,5.0046683,132.21,132.18,8.27523879]
[1765562378843,13.46284562,132.22,132.18,8.27523879]
[1765562379022,5.00466788,132.21,132.18,8.27523879]
[1765562379218,13.46284562,132.22,132.18,8.27523879]
[1765562379412,5.00424683,132.21,132.18,8.27523879]
[1765562379717,13.46284562,132.22,132.18,7.56523879]
[1765562379718,8.25334744,132.22,132.18,7.56523879]
[1765562379918,5.00424282,132.21,132.19,0.71]
[1765562380117,8.25334744,132.22,132.19,0.71]
[1765562380319,5.00406117,132.21,132.19,0.71]
[1765562380520,7.5627604,132.23,132.19,8.27486046]
[1765562380735,5.00396353,132.22,132.19,8.27486046]
[1765562380928,5.00396353,132.21,132.19,8.27486046]
[1765562381129,8.2527604,132.23,132.19,8.27486046]
[1765562381329,5.00356705,132.22,132.19,8.27486046]
[1765562381529,5.00356705,132.21,132.19,8.27486046]
[1765562381723,109.50949818,132.24,132.2,8.27425788]
[1765562381923,5.20949818,132.21,132.17,0.71]
[1765562382132,10.21343918,132.2,132.17,0.71]
[1765562382330,5.003941,132.19,132.17,0.71]
[1765562382534,5.00130003,132.19,132.17,8.27583171]
[1765562383037,5.00130003,132.19,132.17,0.71]
[1765562383238,14.17949818,132.21,132.17,0.71]
[1765562383426,5.68984773,132.2,132.17,0.71]
[1765562383629,4.99984773,132.19,132.17,0.71]
[1765562383844,5.89949818,132.2,132.17,0.71]
[1765562384044,5.00008438,132.19,132.17,0.71]
[1765562384345,5.89949818,132.2,132.17,0.71]
[1765562384651,4.9988567,132.19,132.17,0.71]
[1765562385430,10.89713741,132.18,132.15,13.9570912]
[1765562385637,5.89949818,132.18,132.15,13.9570912]
[1765562385838,5.20949818,132.18,132.15,13.9570912]
[1765562386037,5.20949818,132.18,132.15,20.81424048]
[1765562386274,5.89949818,132.18,132.15,21.52424048]
[1765562386838,0.69,132.18,132.15,21.52424048]
[1765562387140,13.46468322,132.19,132.15,21.52424048]
[1765562387349,4.99633294,132.18,132.15,21.52424048]
[1765562387846,5.68633294,132.18,132.15,21.52424048]
[1765562388149,4.99633294,132.18,132.15,21.52424048]
[1765562392660,4.99633294,132.18,132.16,0.69]
[1765562392960,5.68633294,132.19,132.16,0.69]
[1765562393550,0.69,132.19,132.16,0.69]
[1765562394152,12.23166431,132.21,132.16,11.5928294]
[1765562394463,108.32625551,132.22,132.18,3.33625551]
[1765562394464,104.3,132.22,132.18,3.33625551]
[1765562394658,104.3,132.26,132.21,3.33625551]
[1765562394855,8.24921583,132.29,132.24,3.33625551]
[1765562395157,13.96627609,132.28,132.24,3.33625551]
[1765562395346,8.97,132.28,132.24,4.02625551]
[1765562395541,8.28,132.28,132.22,21.3270912]
[1765562395746,4.9963494,132.27,132.23,4.02625551]
[1765562396146,5.6863494,132.27,132.24,7.56190336]
[1765562396349,5.6863494,132.27,132.24,8.25190336]
[1765562397656,4.9963494,132.27,132.24,10.89815887]
[1765562397846,4.9963494,132.27,132.25,0.69]
[1765562398259,4.9963494,132.27,132.24,7.56190336]
[1765562398563,4.9963494,132.27,132.24,8.25190336]
[1765562399161,4.9963494,132.27,132.24,11.58815887]
[1765562400159,4.9963494,132.27,132.24,8.25190336]
[1765562400365,104.3,132.31,132.25,0.69]
[1765562400569,5.68768102,132.3,132.25,4.02625551]
[1765562400763,4.99768102,132.29,132.25,0.69]
[1765562400968,4.99768102,132.29,132.26,0.69]
[1765562401147,5.68768102,132.29,132.24,26.46692453]
[1765562401471,5.68768102,132.28,132.24,0.69]
[1765562401641,9.02393653,132.28,132.24,0.69]
[1765562401846,13.0470912,132.3,132.24,8.25187372]
[1765562402047,5.68348321,132.29,132.25,3.33625551]
[1765562402266,13.24276721,132.29,132.25,8.25133417]
[1765562402483,4.99348321,132.28,132.25,11.58758968]
[1765562402765,0.69,132.28,132.25,11.58758968]
[1765562402965,4.99348321,132.29,132.27,3.33625551]
[1765562403148,8.28000001,132.33,132.26,0.69]
[1765562403352,4.99088419,132.32,132.29,3.33625551]
[1765562403660,4.99088419,132.32,132.28,3.33625551]
[1765562403843,4.99088419,132.32,132.26,0.97432314]
[1765562404038,12.14620043,132.3,132.25,0.69]
[1765562404261,7.5597218,132.28,132.24,44.00646139]
[1765562404582,7.5597218,132.28,132.24,21.29897171]
[1765562404884,10.89597731,132.28,132.24,0.69]
[1765562405041,11.58597731,132.28,132.24,8.2519715]
[1765562405369,0.69,132.28,132.24,8.2519715]
[1765562405663,0.69,132.28,132.25,0.69]
[1765562405847,8.28,132.3,132.25,4.02625551]
[1765562406048,13.95914333,132.3,132.26,3.33625551]
[1765562406250,4.98914333,132.29,132.26,4.02625551]
[1765562406579,15.83766342,132.32,132.27,11.58654884]
[1765562406775,4.98871775,132.31,132.28,0.69]
[1765562406988,4.98871775,132.31,132.28,4.02625551]
[1765562407496,4.98871775,132.31,132.28,0.69]
[1765562407655,0.69,132.3,132.27,7.56029333]
[1765562407968,5.67871775,132.31,132.27,8.25029333]
[1765562408866,13.23683504,132.31,132.27,8.25029333]
[1765562409456,3.33625551,132.28,132.23,7.56218355]
[1765562409757,3.33625551,132.28,132.24,7.5618682]
[1765562409959,8.32497326,132.28,132.24,8.2518682]
[1765562410144,4.02625551,132.27,132.24,7.5618682]
[1765562410349,0.69,132.27,132.24,7.5618682]
[1765562410542,0.69,132.27,132.24,8.2518682]
[1765562410752,9.01497326,132.28,132.24,8.2518682]
[1765562410968,15.88518996,132.28,132.24,0.69]
[1765562411167,11.58647221,132.28,132.24,0.69]
[1765562411868,4.02198364,132.27,132.22,24.63200028]
[1765562412047,4.02198364,132.27,132.23,0.69]
[1765562412570,3.33198364,132.27,132.23,0.69]
[1765562412873,16.57374744,132.27,132.23,8.25238707]
[1765562413073,11.58231576,132.27,132.23,8.25238707]
[1765562413373,8.25033212,132.27,132.23,8.25238707]
[1765562413677,11.58231576,132.27,132.23,8.25238707]
[1765562413879,3.33198364,132.26,132.23,0.69]
[1765562414049,9.00862928,132.26,132.22,0.69]
[1765562414351,17.28862928,132.26,132.22,0.69]
[1765562414552,104.99,132.25,132.21,15.84349741]
[1765562414750,108.32198364,132.25,132.21,16.53349741]
[1765562414949,115.88360026,132.25,132.21,16.53349741]
[1765562415471,115.88360026,132.25,132.21,8.28]
[1765562415472,108.32198364,132.24,132.21,8.28]
[1765562415771,3.33198364,132.22,132.17,0.69]
[1765562415954,9.00993717,132.22,132.18,0.69]
[1765562416155,4.02198364,132.22,132.18,0.69]
[1765562416559,9.01016213,132.22,132.18,0.69]
[1765562416968,5.67817849,132.22,132.19,7.56470259]
[1765562417274,123.47417506,132.24,132.19,7.56470259]
[1765562417458,4.98940866,132.23,132.2,0.69]
[1765562417773,120.83219142,132.24,132.2,0.69]
[1765562418565,9.02125306,132.23,132.18,16.53521485]
[1765562418975,4.03198364,132.22,132.18,16.53521485]
[1765562419154,3.33198364,132.22,132.19,0.69]
[1765562419359,8.26310618,132.23,132.19,0.69]
[1765562419360,11.59508982,132.23,132.19,0.69]
[1765562419761,10.89508982,132.23,132.19,0.69]
[1765562419960,4.03198364,132.22,132.18,16.53521485]
[1765562420569,13.0470912,132.26,132.19,0.71]
[1765562420772,213.27255457,132.27,132.21,13.0470912]
[1765562420773,104.3,132.27,132.21,13.0470912]
[1765562420972,104.3,132.27,132.23,7.56258035]
[1765562421473,112.52035211,132.27,132.24,0.71]
[1765562421658,104.96,132.27,132.24,0.71]
[1765562422157,0.66,132.26,132.22,15.84308333]
[1765562422362,0.66,132.26,132.22,8.99]
[1765562422363,3.99198364,132.26,132.22,8.99]
[1765562422678,123.47245396,132.27,132.23,0.71]
[1765562423058,8.22101285,132.26,132.22,15.84288654]
[1765562423257,8.22101285,132.26,132.22,16.55288654]
[1765562423577,13.20774759,132.26,132.22,16.55288654]
[1765562423976,0.66,132.28,132.23,4.04198364]
[1765562424191,8.21973006,132.28,132.23,4.04198364]